[Event "*** Titled Tuesday Blitz"]
[Site "Chess.com"]
[Date "2020.05.12"]
[Round "5"]
[White "annacramling"]
[Black "Ashedu66"]
[Result "0-1"]
[WhiteElo "1872"]
[BlackElo "2124"]
[TimeControl "180+1"]
[EndTime "10:56:02 PDT"]
[Termination "Ashedu66 won on time"]

1. d4 {[%clk 0:03:00.9]} 1... d6 {[%clk 0:02:59.2]} 2. Nf3 {[%clk 0:02:56.3]}
2... Bg4 {[%clk 0:02:58.7]} 3. c3 {[%clk 0:02:32.2]} 3... Nf6 {[%clk 0:02:56.5]}
4. Nbd2 {[%clk 0:02:28.5]} 4... Nbd7 {[%clk 0:02:54.8]} 5. e4 {[%clk 0:02:18.6]}
5... e5 {[%clk 0:02:53.7]} 6. h3 {[%clk 0:02:17.2]} 6... Bh5 {[%clk 0:02:49.9]}
7. d5 {[%clk 0:02:13.2]} 7... Nc5 {[%clk 0:02:45.7]} 8. g4 {[%clk 0:01:52.1]}
8... Bg6 {[%clk 0:02:44]} 9. Bb5+ {[%clk 0:01:41.8]} 9... Ke7 {[%clk 0:02:08]}
10. Nh4 {[%clk 0:01:24]} 10... Nfxe4 {[%clk 0:01:45.9]} 11. Nxe4 {[%clk
0:01:19.6]} 11... Nxe4 {[%clk 0:01:39.7]} 12. f3 {[%clk 0:00:59.1]} 12... Nf6
{[%clk 0:01:32.5]} 13. Bg5 {[%clk 0:00:53.6]} 13... h6 {[%clk 0:01:25.6]} 14.
Bxf6+ {[%clk 0:00:35.7]} 14... gxf6 {[%clk 0:01:25.3]} 15. f4 {[%clk 0:00:36]}
15... a6 {[%clk 0:01:04.2]} 16. Ba4 {[%clk 0:00:14.9]} 16... b5 {[%clk
0:01:01.7]} 17. Bc2 {[%clk 0:00:14.9]} 17... Rg8 {[%clk 0:00:53.9]} 18. f5
{[%clk 0:00:11.4]} 18... Bh7 {[%clk 0:00:52.3]} 19. Qd2 {[%clk 0:00:09.8]} 19...
Qd7 {[%clk 0:00:43.4]} 20. O-O-O {[%clk 0:00:09.4]} 20... Kd8 {[%clk 0:00:20.5]}
21. Be4 {[%clk 0:00:06.3]} 21... Kc8 {[%clk 0:00:20.2]} 22. Nf3 {[%clk
0:00:05.2]} 22... Kb7 {[%clk 0:00:19.8]} 23. Qd3 {[%clk 0:00:04.5]} 23... h5
{[%clk 0:00:17.1]} 24. Rdg1 {[%clk 0:00:04]} 24... Bh6+ {[%clk 0:00:16.2]} 25.
Kb1 {[%clk 0:00:04.1]} 25... Bf4 {[%clk 0:00:15.8]} 26. Nh4 {[%clk 0:00:03.1]}
26... Rg7 {[%clk 0:00:13.4]} 27. gxh5 {[%clk 0:00:03.3]} 27... Rag8 {[%clk
0:00:12.8]} 28. Rxg7 {[%clk 0:00:03.3]} 28... Rxg7 {[%clk 0:00:12.9]} 29. Nf3
{[%clk 0:00:03.5]} 29... Qc8 {[%clk 0:00:11.7]} 30. Rg1 {[%clk 0:00:03.3]} 30...
Rxg1+ {[%clk 0:00:10.7]} 31. Nxg1 {[%clk 0:00:04.2]} 31... Qg8 {[%clk
0:00:10.6]} 32. Ne2 {[%clk 0:00:04.4]} 32... Qg5 {[%clk 0:00:07]} 33. Nxf4
{[%clk 0:00:04.3]} 33... Qxf4 {[%clk 0:00:07]} 34. Qe2 {[%clk 0:00:03.9]} 34...
Bxf5 {[%clk 0:00:04.3]} 35. Bxf5 {[%clk 0:00:03.6]} 35... Qxf5+ {[%clk
0:00:04.4]} 36. Kc1 {[%clk 0:00:03.4]} 36... Qxh3 {[%clk 0:00:04]} 37. Qd1
{[%clk 0:00:01.9]} 37... Qh4 {[%clk 0:00:02.5]} 38. Qe2 {[%clk 0:00:02.1]} 38...
Qf4+ {[%clk 0:00:02.3]} 39. Kc2 {[%clk 0:00:02.3]} 39... e4 {[%clk 0:00:02.3]}
40. Kb3 {[%clk 0:00:01.6]} 40... Qf5 {[%clk 0:00:01.8]} 0-1

[Event "*** Titled Tuesday Blitz"]
[Site "Chess.com"]
[Date "2020.05.12"]
[Round "5"]
[White "Paralinch"]
[Black "Harut-1998"]
[Result "0-1"]
[WhiteElo "2878"]
[BlackElo "2770"]
[TimeControl "180+1"]
[EndTime "10:56:03 PDT"]
[Termination "Harut-1998 won by resignation"]

1. e4 {[%clk 0:03:00.9]} 1... e6 {[%clk 0:02:55.5]} 2. d4 {[%clk 0:03:00.4]}
2... d5 {[%clk 0:02:55.6]} 3. exd5 {[%clk 0:03:01.3]} 3... exd5 {[%clk
0:02:55.8]} 4. Nf3 {[%clk 0:03:02.2]} 4... Bd6 {[%clk 0:02:48.1]} 5. c4 {[%clk
0:03:02]} 5... Nf6 {[%clk 0:02:46.9]} 6. Nc3 {[%clk 0:03:02]} 6... O-O {[%clk
0:02:46.5]} 7. Bg5 {[%clk 0:02:59.2]} 7... Re8+ {[%clk 0:02:42.4]} 8. Be2 {[%clk
0:02:59.7]} 8... dxc4 {[%clk 0:02:42.2]} 9. O-O {[%clk 0:03:00.1]} 9... h6
{[%clk 0:02:39.3]} 10. Bh4 {[%clk 0:03:00.1]} 10... Nbd7 {[%clk 0:02:27.2]} 11.
Bxc4 {[%clk 0:02:58.9]} 11... Nb6 {[%clk 0:02:18.5]} 12. Bb3 {[%clk 0:02:59]}
12... Be6 {[%clk 0:02:10.1]} 13. Bc2 {[%clk 0:02:49.9]} 13... Nbd5 {[%clk
0:01:50]} 14. a3 {[%clk 0:02:46.8]} 14... Nf4 {[%clk 0:01:45.8]} 15. Re1 {[%clk
0:02:38.1]} 15... Be7 {[%clk 0:01:25.9]} 16. Bg3 {[%clk 0:02:34.4]} 16... N4d5
{[%clk 0:01:23.5]} 17. Qd3 {[%clk 0:02:26.9]} 17... c6 {[%clk 0:01:03]} 18. Be5
{[%clk 0:02:21.3]} 18... g6 {[%clk 0:00:57.4]} 19. Qd2 {[%clk 0:02:20.5]} 19...
Ng4 {[%clk 0:00:54.8]} 20. Bg3 {[%clk 0:02:17.5]} 20... Nxc3 {[%clk 0:00:47.5]}
21. bxc3 {[%clk 0:02:15.6]} 21... Bd5 {[%clk 0:00:44.7]} 22. Ne5 {[%clk
0:02:04.9]} 22... Nxe5 {[%clk 0:00:42.9]} 23. Bxe5 {[%clk 0:02:05.7]} 23... Bg5
{[%clk 0:00:41.2]} 24. f4 {[%clk 0:02:05.9]} 24... Bh4 {[%clk 0:00:36.3]} 25.
Re3 {[%clk 0:01:58.1]} 25... f6 {[%clk 0:00:25.8]} 26. Bxg6 {[%clk 0:01:56.9]}
26... fxe5 {[%clk 0:00:25]} 27. Bxe8 {[%clk 0:01:57]} 27... Qxe8 {[%clk
0:00:24.1]} 28. fxe5 {[%clk 0:01:46.7]} 28... Qg6 {[%clk 0:00:20.5]} 29. Rf1
{[%clk 0:01:44.2]} 29... Kh7 {[%clk 0:00:13.2]} 30. Qd3 {[%clk 0:01:22.5]} 30...
Rg8 {[%clk 0:00:10.9]} 31. Qxg6+ {[%clk 0:01:21.5]} 31... Rxg6 {[%clk
0:00:11.8]} 32. g3 {[%clk 0:01:21.9]} 32... Be7 {[%clk 0:00:11.7]} 33. a4 {[%clk
0:01:20.9]} 33... b5 {[%clk 0:00:07.8]} 34. a5 {[%clk 0:01:19.2]} 34... a6
{[%clk 0:00:06.7]} 35. Rf5 {[%clk 0:01:15.3]} 35... Kg7 {[%clk 0:00:06.9]} 36.
h4 {[%clk 0:01:07.4]} 36... Bxh4 {[%clk 0:00:05.8]} 37. Kh2 {[%clk 0:01:07.3]}
37... Bg5 {[%clk 0:00:05.5]} 38. Re2 {[%clk 0:01:07.4]} 38... Be7 {[%clk
0:00:06.1]} 39. Ref2 {[%clk 0:01:05.8]} 39... Rg5 {[%clk 0:00:06.8]} 40. Rxg5+
{[%clk 0:00:43]} 40... Bxg5 {[%clk 0:00:07.7]} 41. Kh3 {[%clk 0:00:41.8]} 41...
Bd8 {[%clk 0:00:08.3]} 42. Rf1 {[%clk 0:00:39.4]} 42... Bxa5 {[%clk 0:00:07.4]}
43. Ra1 {[%clk 0:00:33.2]} 43... Bxc3 {[%clk 0:00:07.9]} 44. Rxa6 {[%clk
0:00:34.1]} 44... Bxd4 {[%clk 0:00:08.6]} 45. Kg4 {[%clk 0:00:32.4]} 45... Bxe5
{[%clk 0:00:08.4]} 46. Kf5 {[%clk 0:00:33.3]} 46... Bxg3 {[%clk 0:00:08.5]} 47.
Ra7+ {[%clk 0:00:33.5]} 47... Kf8 {[%clk 0:00:08.8]} 48. Rh7 {[%clk 0:00:31.2]}
48... Bd6 {[%clk 0:00:08.1]} 49. Kf6 {[%clk 0:00:30.2]} 49... Ke8 {[%clk
0:00:07.5]} 50. Rxh6 {[%clk 0:00:29.7]} 50... Kd7 {[%clk 0:00:07.4]} 51. Rh7+
{[%clk 0:00:29.6]} 51... Kc8 {[%clk 0:00:07.6]} 52. Kf5 {[%clk 0:00:30]} 52...
b4 {[%clk 0:00:07.7]} 53. Rh6 {[%clk 0:00:30]} 53... Kc7 {[%clk 0:00:07.8]} 54.
Rh7+ {[%clk 0:00:30.5]} 54... Kb6 {[%clk 0:00:08.1]} 55. Rd7 {[%clk 0:00:31.1]}
55... Bc5 {[%clk 0:00:08]} 56. Rd8 {[%clk 0:00:31.7]} 56... b3 {[%clk
0:00:08.6]} 57. Rb8+ {[%clk 0:00:31]} 57... Kc7 {[%clk 0:00:09]} 0-1

[Event "*** Titled Tuesday Blitz"]
[Site "Chess.com"]
[Date "2020.05.12"]
[Round "5"]
[White "grandemestregringo"]
[Black "EvgenyRomanov"]
[Result "1-0"]
[WhiteElo "2480"]
[BlackElo "2644"]
[TimeControl "180+1"]
[EndTime "10:56:04 PDT"]
[Termination "grandemestregringo won by resignation"]

1. d4 {[%clk 0:03:00.9]} 1... Nf6 {[%clk 0:02:58.8]} 2. c4 {[%clk 0:03:01.3]}
2... c5 {[%clk 0:02:58.7]} 3. d5 {[%clk 0:02:59.3]} 3... b5 {[%clk 0:02:58.8]}
4. cxb5 {[%clk 0:02:58.6]} 4... a6 {[%clk 0:02:58.9]} 5. bxa6 {[%clk 0:02:59.3]}
5... g6 {[%clk 0:02:58.6]} 6. Nc3 {[%clk 0:02:59.4]} 6... Bxa6 {[%clk
0:02:57.6]} 7. g3 {[%clk 0:03:00.3]} 7... Bg7 {[%clk 0:02:56.9]} 8. Bg2 {[%clk
0:03:00.9]} 8... d6 {[%clk 0:02:57.4]} 9. Nf3 {[%clk 0:03:01.4]} 9... O-O {[%clk
0:02:57.5]} 10. O-O {[%clk 0:03:00.3]} 10... Nbd7 {[%clk 0:02:57.1]} 11. Rb1
{[%clk 0:02:55.8]} 11... Qa5 {[%clk 0:02:46.8]} 12. Bd2 {[%clk 0:02:54.9]} 12...
Rfb8 {[%clk 0:02:45.1]} 13. b3 {[%clk 0:02:28.6]} 13... Qa3 {[%clk 0:02:37.8]}
14. Ne1 {[%clk 0:02:26.1]} 14... Qa5 {[%clk 0:02:27]} 15. a4 {[%clk 0:02:20.5]}
15... Qd8 {[%clk 0:02:22.3]} 16. Nc2 {[%clk 0:02:16.8]} 16... Ne5 {[%clk
0:02:18.9]} 17. Na3 {[%clk 0:02:09.8]} 17... Ne8 {[%clk 0:02:11.9]} 18. Qc2
{[%clk 0:01:59.8]} 18... Nc7 {[%clk 0:02:09.6]} 19. Rfd1 {[%clk 0:01:57]} 19...
Qc8 {[%clk 0:01:59]} 20. h3 {[%clk 0:01:54.8]} 20... Rb7 {[%clk 0:01:47.7]} 21.
Kh2 {[%clk 0:01:31.8]} 21... Rab8 {[%clk 0:01:44.7]} 22. f4 {[%clk 0:01:27.8]}
22... Nd7 {[%clk 0:01:44.5]} 23. e4 {[%clk 0:01:28.3]} 23... h5 {[%clk
0:01:05.3]} 24. Re1 {[%clk 0:01:22.7]} 24... Qd8 {[%clk 0:00:59.9]} 25. e5
{[%clk 0:01:12.1]} 25... dxe5 {[%clk 0:00:58.6]} 26. f5 {[%clk 0:01:12.6]} 26...
e4 {[%clk 0:00:54.6]} 27. fxg6 {[%clk 0:01:06.8]} 27... f5 {[%clk 0:00:54.6]}
28. Nc4 {[%clk 0:00:45.1]} 28... Ne5 {[%clk 0:00:47.4]} 29. Nxe5 {[%clk
0:00:44.5]} 29... Bxe5 {[%clk 0:00:48.3]} 30. Qd1 {[%clk 0:00:44.8]} 30... Qf8
{[%clk 0:00:23.8]} 31. Qxh5 {[%clk 0:00:43.4]} 31... Qg7 {[%clk 0:00:24]} 32.
Qxf5 {[%clk 0:00:22.5]} 32... Rf8 {[%clk 0:00:22.9]} 33. Qxe4 {[%clk 0:00:18.1]}
33... Bxc3 {[%clk 0:00:21]} 34. Bxc3 {[%clk 0:00:19]} 34... Qxc3 {[%clk
0:00:21]} 35. Qxe7 {[%clk 0:00:18.7]} 35... Ne8 {[%clk 0:00:20.8]} 36. Qe6+
{[%clk 0:00:17.7]} 36... Kh8 {[%clk 0:00:19.9]} 37. d6 {[%clk 0:00:17.6]} 37...
Rg7 {[%clk 0:00:17.5]} 38. d7 {[%clk 0:00:17.1]} 38... Nf6 {[%clk 0:00:15.8]}
39. Rbd1 {[%clk 0:00:14.9]} 39... Bd3 {[%clk 0:00:13.6]} 40. Re3 {[%clk
0:00:11]} 40... Bf5 {[%clk 0:00:10.7]} 41. Rxc3 {[%clk 0:00:07.1]} 41... Bxe6
{[%clk 0:00:10.7]} 42. d8=Q {[%clk 0:00:08]} 42... Rxd8 {[%clk 0:00:10.3]} 43.
Rxd8+ {[%clk 0:00:08.9]} 43... Ng8 {[%clk 0:00:10.6]} 44. Be4 {[%clk 0:00:07]}
44... Rxg6 {[%clk 0:00:11.5]} 45. Bxg6 {[%clk 0:00:06.5]} 45... Kg7 {[%clk
0:00:12.4]} 46. Be4 {[%clk 0:00:06.7]} 46... Ne7 {[%clk 0:00:12.3]} 47. Rxc5
{[%clk 0:00:06.4]} 47... Kf6 {[%clk 0:00:13.2]} 48. Rc7 {[%clk 0:00:06.4]} 1-0

[Event "*** Titled Tuesday Blitz"]
[Site "Chess.com"]
[Date "2020.05.12"]
[Round "5"]
[White "dennisodessa"]
[Black "IwkooO"]
[Result "0-1"]
[WhiteElo "2316"]
[BlackElo "2529"]
[TimeControl "180+1"]
[EndTime "10:56:06 PDT"]
[Termination "IwkooO won by checkmate"]

1. d4 {[%clk 0:03:00]} 1... Nf6 {[%clk 0:02:58.8]} 2. c4 {[%clk 0:03:00.4]} 2...
e6 {[%clk 0:02:56]} 3. Nc3 {[%clk 0:03:00.9]} 3... Bb4 {[%clk 0:02:56.3]} 4. Qc2
{[%clk 0:03:01.1]} 4... O-O {[%clk 0:02:55]} 5. a3 {[%clk 0:03:01]} 5... Bxc3+
{[%clk 0:02:53.3]} 6. Qxc3 {[%clk 0:03:01.9]} 6... b6 {[%clk 0:02:51.3]} 7. Bg5
{[%clk 0:03:00.9]} 7... Bb7 {[%clk 0:02:49.1]} 8. Nf3 {[%clk 0:03:00.5]} 8... d6
{[%clk 0:02:42.9]} 9. e3 {[%clk 0:02:59]} 9... h6 {[%clk 0:02:41.2]} 10. Bh4
{[%clk 0:02:57.2]} 10... g5 {[%clk 0:02:31.8]} 11. Bg3 {[%clk 0:02:57]} 11...
Ne4 {[%clk 0:02:31.9]} 12. Qc2 {[%clk 0:02:57.5]} 12... Nd7 {[%clk 0:02:30.7]}
13. Bd3 {[%clk 0:02:55.8]} 13... f5 {[%clk 0:02:30.4]} 14. d5 {[%clk 0:02:17.7]}
14... Ndc5 {[%clk 0:02:25]} 15. Nd4 {[%clk 0:02:09.5]} 15... exd5 {[%clk
0:02:14.2]} 16. cxd5 {[%clk 0:02:09.4]} 16... Bxd5 {[%clk 0:02:11]} 17. Bc4
{[%clk 0:02:04.3]} 17... Bxc4 {[%clk 0:02:09.9]} 18. Qxc4+ {[%clk 0:02:02.3]}
18... d5 {[%clk 0:02:10.4]} 19. Qe2 {[%clk 0:02:00.7]} 19... Qd7 {[%clk
0:01:55.6]} 20. b4 {[%clk 0:01:56.7]} 20... Ne6 {[%clk 0:01:20.8]} 21. Nxe6
{[%clk 0:01:21]} 21... Qxe6 {[%clk 0:01:19.7]} 22. Bxc7 {[%clk 0:01:20.7]} 22...
Rac8 {[%clk 0:01:14.1]} 23. Bg3 {[%clk 0:01:13.8]} 23... Nc3 {[%clk 0:01:06.3]}
24. Qd3 {[%clk 0:00:29.4]} 24... f4 {[%clk 0:01:05.5]} 25. Rc1 {[%clk 0:00:29]}
25... Ne4 {[%clk 0:01:01.7]} 26. Rxc8 {[%clk 0:00:20.2]} 26... Rxc8 {[%clk
0:01:00.1]} 27. O-O {[%clk 0:00:20.2]} 27... fxg3 {[%clk 0:00:59.7]} 28. hxg3
{[%clk 0:00:21.1]} 28... Qf5 {[%clk 0:00:38.6]} 29. Qd4 {[%clk 0:00:17.9]} 29...
Rc4 {[%clk 0:00:35.7]} 30. Qd1 {[%clk 0:00:16.3]} 30... Qe5 {[%clk 0:00:30.4]}
31. Qh5 {[%clk 0:00:16]} 31... Kg7 {[%clk 0:00:27.7]} 32. Qg4 {[%clk 0:00:13.3]}
32... Nf6 {[%clk 0:00:23.7]} 33. Qe2 {[%clk 0:00:13.4]} 33... Rc3 {[%clk
0:00:21.9]} 34. Qa6 {[%clk 0:00:13.1]} 34... Qc7 {[%clk 0:00:21.2]} 35. Kh2
{[%clk 0:00:05.8]} 35... Ng4+ {[%clk 0:00:18.5]} 36. Kg1 {[%clk 0:00:04.3]}
36... Rc1 {[%clk 0:00:18.3]} 37. Qe2 {[%clk 0:00:02.8]} 37... Rxf1+ {[%clk
0:00:15.7]} 38. Qxf1 {[%clk 0:00:03.6]} 38... Qc2 {[%clk 0:00:16.2]} 39. Qd1
{[%clk 0:00:04.5]} 39... Qxd1# {[%clk 0:00:16.2]} 0-1

[Event "*** Titled Tuesday Blitz"]
[Site "Chess.com"]
[Date "2020.05.12"]
[Round "5"]
[White "rasmussvane"]
[Black "IljaJoke"]
[Result "0-1"]
[WhiteElo "2878"]
[BlackElo "2537"]
[TimeControl "180+1"]
[EndTime "10:56:07 PDT"]
[Termination "IljaJoke won by checkmate"]

1. Nf3 {[%clk 0:03:00.9]} 1... Nf6 {[%clk 0:02:57.2]} 2. g3 {[%clk 0:03:00.6]}
2... d5 {[%clk 0:02:55.9]} 3. Bg2 {[%clk 0:03:00.4]} 3... g6 {[%clk 0:02:54]} 4.
O-O {[%clk 0:02:59.6]} 4... Bg7 {[%clk 0:02:54.4]} 5. d4 {[%clk 0:02:59.5]} 5...
O-O {[%clk 0:02:54.1]} 6. c4 {[%clk 0:02:59.9]} 6... c6 {[%clk 0:02:54.6]} 7.
Qb3 {[%clk 0:02:59.6]} 7... dxc4 {[%clk 0:02:51]} 8. Qxc4 {[%clk 0:03:00.5]}
8... b5 {[%clk 0:02:51.2]} 9. Qc2 {[%clk 0:02:56.2]} 9... Bf5 {[%clk 0:02:46.9]}
10. Qd1 {[%clk 0:02:53.6]} 10... c5 {[%clk 0:02:46.9]} 11. Nc3 {[%clk
0:02:20.9]} 11... Nc6 {[%clk 0:02:31]} 12. d5 {[%clk 0:01:21.2]} 12... b4 {[%clk
0:01:50.8]} 13. Nh4 {[%clk 0:00:50.4]} 13... Nd4 {[%clk 0:00:52]} 14. Nxf5
{[%clk 0:00:48.9]} 14... Nxf5 {[%clk 0:00:49]} 15. Na4 {[%clk 0:00:46.8]} 15...
Rc8 {[%clk 0:00:49]} 16. Bf4 {[%clk 0:00:36.8]} 16... Nd6 {[%clk 0:00:41.4]} 17.
Rc1 {[%clk 0:00:36]} 17... c4 {[%clk 0:00:36.2]} 18. Be5 {[%clk 0:00:33.1]}
18... Qa5 {[%clk 0:00:35.1]} 19. Re1 {[%clk 0:00:30.8]} 19... Nd7 {[%clk
0:00:34.5]} 20. Bxg7 {[%clk 0:00:29.9]} 20... Kxg7 {[%clk 0:00:35.4]} 21. e4
{[%clk 0:00:28.9]} 21... Ne5 {[%clk 0:00:35.5]} 22. Bf1 {[%clk 0:00:27.2]} 22...
f6 {[%clk 0:00:20.3]} 23. f4 {[%clk 0:00:26.4]} 23... Nd3 {[%clk 0:00:20.7]} 24.
Bxd3 {[%clk 0:00:26.2]} 24... cxd3 {[%clk 0:00:21.6]} 25. b3 {[%clk 0:00:26.7]}
25... Qb5 {[%clk 0:00:14.1]} 26. Qd2 {[%clk 0:00:17.3]} 26... Rxc1 {[%clk
0:00:11.5]} 27. Rxc1 {[%clk 0:00:16.6]} 27... Nxe4 {[%clk 0:00:11.4]} 28. Qe3
{[%clk 0:00:16.7]} 28... f5 {[%clk 0:00:11.6]} 29. Qd4+ {[%clk 0:00:16.2]} 29...
Kh6 {[%clk 0:00:11.2]} 30. Re1 {[%clk 0:00:11.6]} 30... d2 {[%clk 0:00:11.1]}
31. Rxe4 {[%clk 0:00:11.9]} 31... fxe4 {[%clk 0:00:11.9]} 32. Qxd2 {[%clk
0:00:12.3]} 32... Qd3 {[%clk 0:00:11.6]} 33. Qxb4 {[%clk 0:00:10.4]} 33... e3
{[%clk 0:00:08.2]} 34. Qxe7 {[%clk 0:00:10.4]} 34... Qd1+ {[%clk 0:00:05.4]} 35.
Kg2 {[%clk 0:00:10.3]} 35... Qxd5+ {[%clk 0:00:06.3]} 36. Kh3 {[%clk 0:00:10.2]}
36... Qf5+ {[%clk 0:00:06.5]} 37. Kg2 {[%clk 0:00:08.5]} 37... Rc8 {[%clk
0:00:06.5]} 38. Qxe3 {[%clk 0:00:07.8]} 38... Rc2+ {[%clk 0:00:07.1]} 39. Kf3
{[%clk 0:00:03.5]} 39... Rxa2 {[%clk 0:00:05.5]} 40. g4 {[%clk 0:00:03.2]} 40...
Qd5+ {[%clk 0:00:05.2]} 41. Qe4 {[%clk 0:00:02.6]} 41... Rf2+ {[%clk 0:00:04.8]}
42. Kxf2 {[%clk 0:00:02.2]} 42... Qxe4 {[%clk 0:00:04.9]} 43. Kg3 {[%clk
0:00:03.1]} 43... Qe3+ {[%clk 0:00:05.2]} 44. Kh4 {[%clk 0:00:03.5]} 44... Qxf4
{[%clk 0:00:06.1]} 45. Nc5 {[%clk 0:00:03.7]} 45... g5+ {[%clk 0:00:06.4]} 46.
Kh3 {[%clk 0:00:03.9]} 46... Qf3# {[%clk 0:00:07]} 0-1

[Event "*** Titled Tuesday Blitz"]
[Site "Chess.com"]
[Date "2020.05.12"]
[Round "5"]
[White "Playgood28"]
[Black "korbul"]
[Result "1/2-1/2"]
[WhiteElo "2262"]
[BlackElo "2565"]
[TimeControl "180+1"]
[EndTime "10:56:07 PDT"]
[Termination "Game drawn by repetition"]

1. d4 {[%clk 0:03:00.9]} 1... Nf6 {[%clk 0:02:59.5]} 2. c4 {[%clk 0:02:59.6]}
2... e6 {[%clk 0:02:59.6]} 3. Nc3 {[%clk 0:02:59.4]} 3... Bb4 {[%clk 0:02:59.4]}
4. Qc2 {[%clk 0:02:59.4]} 4... O-O {[%clk 0:02:58.6]} 5. a3 {[%clk 0:02:59.2]}
5... Bxc3+ {[%clk 0:02:58.3]} 6. Qxc3 {[%clk 0:02:59]} 6... b6 {[%clk
0:02:59.2]} 7. e3 {[%clk 0:02:58.5]} 7... Bb7 {[%clk 0:02:59.1]} 8. Nf3 {[%clk
0:02:57.9]} 8... Ne4 {[%clk 0:02:57.6]} 9. Qc2 {[%clk 0:02:57]} 9... d6 {[%clk
0:02:57.2]} 10. Be2 {[%clk 0:02:56.7]} 10... Nd7 {[%clk 0:02:55.3]} 11. b4
{[%clk 0:02:55.3]} 11... a5 {[%clk 0:02:54.6]} 12. Bb2 {[%clk 0:02:54]} 12...
axb4 {[%clk 0:02:53.9]} 13. axb4 {[%clk 0:02:53.9]} 13... Rxa1+ {[%clk
0:02:53.1]} 14. Bxa1 {[%clk 0:02:53.8]} 14... f5 {[%clk 0:02:48.7]} 15. O-O
{[%clk 0:02:52.6]} 15... Ng5 {[%clk 0:02:47]} 16. d5 {[%clk 0:02:41.8]} 16...
Nxf3+ {[%clk 0:02:37.2]} 17. Bxf3 {[%clk 0:02:40.8]} 17... Qg5 {[%clk
0:02:36.8]} 18. h4 {[%clk 0:02:09.6]} 18... Qxh4 {[%clk 0:02:20.3]} 19. dxe6
{[%clk 0:02:07.9]} 19... Bxf3 {[%clk 0:02:19.1]} 20. gxf3 {[%clk 0:02:03.8]}
20... Qg5+ {[%clk 0:01:58.9]} 21. Kh2 {[%clk 0:01:57.6]} 21... Qh6+ {[%clk
0:01:58]} 22. Kg2 {[%clk 0:01:53.4]} 22... Qxe6 {[%clk 0:01:57.6]} 23. Rg1
{[%clk 0:01:38.8]} 23... Ne5 {[%clk 0:01:53.7]} 24. c5 {[%clk 0:01:28.8]} 24...
Qd5 {[%clk 0:01:35.7]} 25. Bxe5 {[%clk 0:01:25.4]} 25... dxe5 {[%clk 0:01:27.3]}
26. cxb6 {[%clk 0:01:23.9]} 26... cxb6 {[%clk 0:01:26.9]} 27. Rd1 {[%clk
0:01:23]} 27... Qe6 {[%clk 0:01:26]} 28. Qc7 {[%clk 0:01:17.7]} 28... Qg6+
{[%clk 0:01:10.3]} 29. Kf1 {[%clk 0:01:15]} 29... Qh5 {[%clk 0:01:03.6]} 30.
Qxe5 {[%clk 0:01:02.2]} 30... Qxf3 {[%clk 0:01:01]} 31. Rd7 {[%clk 0:01:01.4]}
31... Qg4 {[%clk 0:00:56.8]} 32. Qe6+ {[%clk 0:00:51.1]} 32... Kh8 {[%clk
0:00:55.9]} 33. Qe7 {[%clk 0:00:44]} 33... Rg8 {[%clk 0:00:54.6]} 34. Rd8 {[%clk
0:00:42.6]} 34... Qc4+ {[%clk 0:00:43.2]} 35. Kg1 {[%clk 0:00:39.2]} 35... h6
{[%clk 0:00:40.2]} 36. Rxg8+ {[%clk 0:00:33.6]} 36... Qxg8 {[%clk 0:00:38.5]}
37. Qd6 {[%clk 0:00:24.8]} 37... b5 {[%clk 0:00:27.6]} 38. Qc5 {[%clk
0:00:19.3]} 38... Qb8 {[%clk 0:00:11.5]} 39. Qxf5 {[%clk 0:00:18.3]} 39... Qe8
{[%clk 0:00:10.1]} 40. e4 {[%clk 0:00:17.2]} 40... Kg8 {[%clk 0:00:09.7]} 41.
Qd5+ {[%clk 0:00:16.2]} 41... Kh7 {[%clk 0:00:08.9]} 42. Qc5 {[%clk 0:00:14.3]}
42... Qg6+ {[%clk 0:00:08.4]} 43. Kf1 {[%clk 0:00:12.7]} 43... Qxe4 {[%clk
0:00:08.4]} 44. Qxb5 {[%clk 0:00:12]} 44... Qh1+ {[%clk 0:00:06.3]} 45. Ke2
{[%clk 0:00:11]} 45... Qe4+ {[%clk 0:00:07.2]} 46. Kf1 {[%clk 0:00:10.3]} 46...
Qh1+ {[%clk 0:00:06.9]} 47. Ke2 {[%clk 0:00:10.2]} 47... Qe4+ {[%clk 0:00:07.7]}
48. Kf1 {[%clk 0:00:09.8]} 1/2-1/2

[Event "*** Titled Tuesday Blitz"]
[Site "Chess.com"]
[Date "2020.05.12"]
[Round "5"]
[White "Harsha_Bharathakoti"]
[Black "Bossche-CM"]
[Result "1-0"]
[WhiteElo "2804"]
[BlackElo "2436"]
[TimeControl "180+1"]
[EndTime "10:56:08 PDT"]
[Termination "Harsha_Bharathakoti won on time"]

1. Nf3 {[%clk 0:03:00.9]} 1... c5 {[%clk 0:02:59]} 2. c4 {[%clk 0:03:00.6]} 2...
Nf6 {[%clk 0:02:59.2]} 3. Nc3 {[%clk 0:02:59.1]} 3... e6 {[%clk 0:02:55.4]} 4.
d4 {[%clk 0:02:57.8]} 4... cxd4 {[%clk 0:02:53.7]} 5. Nxd4 {[%clk 0:02:58.7]}
5... b6 {[%clk 0:02:52.6]} 6. e4 {[%clk 0:02:57.3]} 6... d6 {[%clk 0:02:50]} 7.
Be2 {[%clk 0:02:54.2]} 7... Bb7 {[%clk 0:02:49.2]} 8. f3 {[%clk 0:02:53.8]} 8...
Be7 {[%clk 0:02:47.6]} 9. Be3 {[%clk 0:02:52.9]} 9... Nbd7 {[%clk 0:02:42.9]}
10. O-O {[%clk 0:02:51.3]} 10... a6 {[%clk 0:02:36]} 11. a4 {[%clk 0:02:50.2]}
11... Rc8 {[%clk 0:02:31.7]} 12. a5 {[%clk 0:02:45]} 12... O-O {[%clk
0:02:29.5]} 13. Nb3 {[%clk 0:02:40.1]} 13... Ne5 {[%clk 0:02:24.5]} 14. axb6
{[%clk 0:02:34.2]} 14... Nxc4 {[%clk 0:02:22.8]} 15. Bxc4 {[%clk 0:02:33.3]}
15... Rxc4 {[%clk 0:02:23.7]} 16. Na5 {[%clk 0:02:33.6]} 16... Qc8 {[%clk
0:02:21.9]} 17. Qb3 {[%clk 0:02:12.3]} 17... Rc5 {[%clk 0:02:01.8]} 18. Nxb7
{[%clk 0:02:11.6]} 18... Qxb7 {[%clk 0:02:00.8]} 19. Bxc5 {[%clk 0:02:07.2]}
19... dxc5 {[%clk 0:02:01.7]} 20. Rfd1 {[%clk 0:02:01.8]} 20... Nd7 {[%clk
0:01:55.7]} 21. Na4 {[%clk 0:01:46.5]} 21... Rb8 {[%clk 0:01:37.5]} 22. Rd2
{[%clk 0:01:18.2]} 22... g6 {[%clk 0:01:10.3]} 23. Rad1 {[%clk 0:01:13.9]} 23...
Nxb6 {[%clk 0:01:09.4]} 24. Qxb6 {[%clk 0:01:14.8]} 24... Qxb6 {[%clk
0:01:08.2]} 25. Nxb6 {[%clk 0:01:15.7]} 25... Rxb6 {[%clk 0:01:08.4]} 26. e5
{[%clk 0:01:09.1]} 26... c4 {[%clk 0:00:57.2]} 27. Rc2 {[%clk 0:01:06]} 27...
Rb4 {[%clk 0:00:41.5]} 28. Rd7 {[%clk 0:00:51.8]} 28... Bc5+ {[%clk 0:00:36.9]}
29. Kf1 {[%clk 0:00:52.3]} 29... a5 {[%clk 0:00:27.8]} 30. f4 {[%clk 0:00:50.9]}
30... Bb6 {[%clk 0:00:23.7]} 31. g3 {[%clk 0:00:40.4]} 31... Kg7 {[%clk
0:00:22.4]} 32. Rd6 {[%clk 0:00:36.2]} 32... a4 {[%clk 0:00:15.3]} 33. Rc6
{[%clk 0:00:35.6]} 33... Bd4 {[%clk 0:00:15]} 34. R6xc4 {[%clk 0:00:36.1]} 34...
Rxc4 {[%clk 0:00:14.1]} 35. Rxc4 {[%clk 0:00:37]} 35... Bxb2 {[%clk 0:00:14.6]}
36. Rxa4 {[%clk 0:00:37.8]} 36... Bc3 {[%clk 0:00:14.6]} 37. Ke2 {[%clk
0:00:31.3]} 37... h5 {[%clk 0:00:14.5]} 38. Kd3 {[%clk 0:00:30.2]} 38... Be1
{[%clk 0:00:14.3]} 39. Ra1 {[%clk 0:00:28.4]} 39... Bf2 {[%clk 0:00:13.8]} 40.
Ra2 {[%clk 0:00:29]} 40... Bc5 {[%clk 0:00:13.7]} 41. Kc4 {[%clk 0:00:29.1]}
41... Be3 {[%clk 0:00:13.5]} 42. h4 {[%clk 0:00:28.3]} 42... g5 {[%clk 0:00:08]}
43. hxg5 {[%clk 0:00:17.9]} 43... Kg6 {[%clk 0:00:08.4]} 44. Kd3 {[%clk
0:00:18.6]} 44... Bc5 {[%clk 0:00:06.7]} 45. Ke4 {[%clk 0:00:19.3]} 45... Bb4
{[%clk 0:00:04.9]} 46. Ra8 {[%clk 0:00:20]} 46... Kg7 {[%clk 0:00:02.9]} 47. f5
{[%clk 0:00:18.4]} 47... Be1 {[%clk 0:00:03.2]} 48. f6+ {[%clk 0:00:18.2]} 48...
Kh7 {[%clk 0:00:03.2]} 49. Rf8 {[%clk 0:00:18.3]} 1-0